fUSD/lending_fUSD_20240725
["ID","MTS","AMOUNT","RATE_DAILY","PERIOD"]
[333108453,1721871052250,-545.77244334,0.00010958,2]
[333108454,1721871052259,-500.0,0.00010958,2]
[333108455,1721871052269,-501.12,0.00010958,2]
[333108456,1721871052279,-500.0,0.00010958,2]
[333108457,1721871052288,-500.0,0.00010958,2]
[333108458,1721871052297,-500.0,0.00010958,2]
[333108459,1721871052307,-151.0,0.00010958,2]
[333108460,1721871052316,-500.0,0.00010958,2]
[333108461,1721871052325,-151.0,0.00010958,2]
[333108462,1721871052334,-151.0,0.00010958,2]
[333108463,1721871052343,-500.0,0.00010958,2]
[333108464,1721871052353,-500.0,0.00010958,2]
[333108465,1721871052363,-500.0,0.00010958,2]
[333108466,1721871052373,-500.0,0.00010958,2]
[333108467,1721871052382,-500.0,0.00010958,2]
[333108468,1721871052392,-500.0,0.00010958,2]
[333108469,1721871052401,-500.0,0.00010958,2]
[333108470,1721871052411,-500.0,0.00010958,2]
[333108471,1721871052420,-500.0,0.00010958,2]
[333108472,1721871052430,-500.0,0.00010958,2]
[333108473,1721871052440,-500.0,0.00010958,2]
[333108474,1721871052450,-227.6,0.00010958,2]
[333108475,1721871052460,-500.0,0.00010958,2]
[333108476,1721871052470,-500.0,0.00010958,2]
[333108477,1721871052479,-500.0,0.00010958,2]
[333108478,1721871052492,-500.0,0.00010958,2]
[333108479,1721871052502,-500.0,0.00010958,2]
[333108480,1721871052512,-500.0,0.00010958,2]
[333108481,1721871052522,-375.86,0.00010958,2]
[333108482,1721871052531,-502.18108921,0.00010958,2]
[333108483,1721871052541,-500.0,0.00010958,2]
[333108484,1721871052552,-500.0,0.00010958,2]
[333108485,1721871052561,-500.0,0.00010958,2]
[333108486,1721871052570,-500.0,0.00010958,2]
[333108487,1721871052580,-500.0,0.00010958,2]
[333108488,1721871052589,-500.0,0.00010958,2]
[333108489,1721871052598,-500.0,0.00010958,2]
[333108490,1721871052608,-500.0,0.00010958,2]
[333108491,1721871052617,-500.0,0.00010958,2]
[333108492,1721871052626,-500.0,0.00010958,2]
[333108493,1721871052636,-500.0,0.00010958,2]
[333108494,1721871052645,-500.0,0.00010958,2]
[333108495,1721871052655,-500.0,0.00010958,2]
[333108496,1721871052664,-508.46408101,0.00010958,2]
[333108497,1721871052674,-500.0,0.00010958,2]
[333108498,1721871052684,-500.0,0.00010958,2]
[333108499,1721871052693,-500.0,0.00010958,2]
[333108500,1721871052702,-500.0,0.00010958,2]
[333108501,1721871052712,-500.0,0.00010958,2]
[333108502,1721871052722,-258.11,0.00010958,2]
[333108503,1721871052736,-500.0,0.00010958,2]
[333108504,1721871052746,-500.0,0.00010958,2]
[333108505,1721871052755,-248.70444736,0.00010958,2]
[333108506,1721871052768,-251.29555264,0.00010958,2]
[333108507,1721871052778,-1037.61,0.00010958,2]
[333108508,1721871052787,-500.0,0.00010958,2]
[333108509,1721871052798,-500.0,0.00010958,2]
[333108510,1721871052807,-500.0,0.00010958,2]
[333108511,1721871052816,-500.0,0.00010958,2]
[333108512,1721871052825,-500.0,0.00010958,2]
[333108513,1721871052835,-500.0,0.00010958,2]
[333108514,1721871052845,-500.0,0.00010958,2]
[333108515,1721871052855,-500.0,0.00010958,2]
[333108516,1721871052865,-500.0,0.00010958,2]
[333108517,1721871052874,-500.0,0.00010958,2]
[333108518,1721871052883,-500.0,0.00010958,2]
[333108519,1721871052892,-500.0,0.00010958,2]
[333108520,1721871052902,-500.0,0.00010958,2]
[333108521,1721871052911,-500.0,0.00010958,2]
[333108522,1721871052920,-500.0,0.00010958,2]
[333108523,1721871052930,-591.99,0.00010958,2]
[333108524,1721871052939,-500.0,0.00010958,2]
[333108525,1721871052949,-500.0,0.00010958,2]
[333108526,1721871052958,-500.0,0.00010958,2]
[333108527,1721871052968,-500.0,0.00010958,2]
[333108528,1721871052977,-500.0,0.00010958,2]
[333108529,1721871052990,-500.0,0.00010958,2]
[333108530,1721871052999,-500.0,0.00010958,2]
[333108531,1721871053009,-329.34745192,0.00010958,2]
[333108532,1721871053022,-170.65254808,0.00010958,2]
[333108533,1721871053031,-500.0,0.00010958,2]
[333108534,1721871053041,-81.05959634,0.00010958,2]
[333108535,1721871053069,-418.94040366,0.00010958,2]
[333108536,1721871053079,-500.0,0.00010958,2]
[333108537,1721871053088,-500.0,0.00010958,2]
[333108538,1721871053098,-500.0,0.00010958,2]
[333108539,1721871053107,-511.20793778,0.00010958,2]
[333108540,1721871053117,-500.0,0.00010958,2]
[333108541,1721871053126,-500.0,0.00010958,2]
[333108542,1721871053137,-500.0,0.00010958,2]
[333108543,1721871053151,-500.0,0.00010958,2]
[333108544,1721871053161,-500.0,0.00010958,2]
[333108545,1721871053171,-500.0,0.00010958,2]
[333108546,1721871053181,-3264.94,0.00010958,2]
[333108547,1721871053191,-500.0,0.00010958,2]
[333108548,1721871053201,-802.26770493,0.00010958,2]
[333108549,1721871053212,-1782.68477691,0.00010958,2]
[333108550,1721871053225,-679.98751816,0.00010958,2]
[333108551,1721871053237,-3264.94,0.00010958,2]
[333108552,1721871053246,-3000.0,0.00010958,2]
[333108553,1721871053255,-3264.94,0.00010958,2]
[333108554,1721871053264,-500.0,0.00010958,2]
[333108555,1721871053274,-3264.94,0.00010958,2]
[333108556,1721871053283,-500.0,0.00010958,2]
[333108557,1721871053291,-500.0,0.00010958,2]
[333108558,1721871053301,-500.0,0.00010958,2]
[333108559,1721871053310,-501.53998608,0.00010958,2]
[333108560,1721871053320,-500.0,0.00010958,2]
[333108561,1721871053329,-515.95506434,0.00010958,2]
[333108562,1721871053339,-222.48426884,0.00010958,2]
[333108563,1721871053348,-500.0,0.00010958,2]
[333108564,1721871053357,-500.0,0.00010958,2]
[333108565,1721871053367,-500.0,0.00010958,2]
[333108566,1721871053376,-500.0,0.00010958,2]
[333108567,1721871053385,-447.87222446,0.00010958,2]
[333108568,1721871053396,-52.12777554,0.00010958,2]
[333108569,1721871053406,-500.0,0.00010958,2]
[333108570,1721871053415,-500.0,0.00010958,2]
[333108571,1721871053424,-500.0,0.00010958,2]
[333108572,1721871053433,-485.35409846,0.00010958,2]
[333108573,1721871053442,-500.0,0.00010958,2]
[333108574,1721871053452,-500.0,0.00010958,2]
[333108575,1721871053461,-500.0,0.00010958,2]
[333108576,1721871053470,-500.0,0.00010958,2]
[333108577,1721871053481,-500.0,0.00010958,2]
[333108578,1721871053493,-500.0,0.00010958,2]
[333108579,1721871053502,-500.0,0.00010958,2]
[333108580,1721871053511,-500.0,0.00010958,2]
[333108581,1721871053520,-500.0,0.00010958,2]
[333108582,1721871053530,-1383.92748539,0.00010958,2]
[333108583,1721871053541,-240.79251461,0.00010958,2]
[333108584,1721871053551,-500.0,0.00010958,2]
[333108585,1721871053560,-1624.72,0.00010958,2]
[333108586,1721871053570,-262.08284546,0.00010958,2]
[333108587,1721871053582,-237.91715454,0.00010958,2]
[333108588,1721871053591,-1624.72,0.00010958,2]
[333108589,1721871053601,-341.52560289,0.00010958,2]
[333108590,1721871053610,-1624.72,0.00010958,2]
[333108591,1721871053619,-500.0,0.00010958,2]
[333108592,1721871053628,-500.0,0.00010958,2]
[333108593,1721871053637,-500.0,0.00010958,2]
[333108594,1721871053646,-500.0,0.00010958,2]
[333108595,1721871053655,-501.35505671,0.00010958,2]
[333108596,1721871053665,-500.0,0.00010958,2]
[333108597,1721871053675,-500.0,0.00010958,2]
[333108598,1721871053968,-1126.11,0.00010958,2]
[333108599,1721871053993,-1103.91,0.00010958,2]
[333108600,1721871054002,-500.0,0.00010958,2]
[333108601,1721871054011,-500.0,0.00010958,2]
[333108602,1721871054021,-500.0,0.00010958,2]
[333108603,1721871054030,-548.80159456,0.00010958,2]
[333108604,1721871054043,-504.57785356,0.00010958,2]
[333108605,1721871054052,-1126.11,0.00010958,2]
[333108606,1721871054061,-1126.11,0.00010958,2]
[333108607,1721871054071,-1126.11,0.00010958,2]
[333108608,1721871054080,-503.96767842,0.00010958,2]
[333108609,1721871054089,-500.0,0.00010958,2]
[333108610,1721871054098,-431.27101722,0.00010958,2]
[333108611,1721871054111,-68.72898278,0.00010958,2]
[333108612,1721871054121,-500.0,0.00010958,2]
[333108613,1721871054131,-500.0,0.00010958,2]
[333108614,1721871054144,-500.0,0.00010958,2]
[333108615,1721871054153,-500.28888043,0.00010958,2]
[333108616,1721871054162,-449.86213679,0.00010958,2]
[333108617,1721871054174,-50.13786321,0.00010958,2]
[333108618,1721871054185,-500.0,0.00010958,2]
[333108619,1721871054195,-90.50213679,0.00010958,2]
[333108620,1721871054545,-1288.84,0.0001078,2]
[333108621,1721871054557,-985.95717862,0.0001078,2]
[333108622,1721871054593,-265.12255344,0.0001078,2]
[333108623,1721871054605,-707.29246794,0.0001078,2]
[333108624,1721871054614,-409.49786321,0.00010958,2]
[333108625,1721871054624,-509.31784745,0.00010958,2]
[333108626,1721871054634,-500.0,0.00010958,2]
[333108627,1721871054643,-500.0,0.00010958,2]
[333108628,1721871054652,-356.70014644,0.00010958,2]
[333108629,1721871054661,-429.8434125,0.00010958,2]
[333108630,1721871054672,-70.1565875,0.00010958,2]
[333108631,1721871054682,-500.0,0.00010958,2]
[333108632,1721871054691,-500.0,0.00010958,2]
[333108633,1721871054702,-500.0,0.00010958,2]
[333108634,1721871054711,-500.0,0.00010958,2]
[333108635,1721871054720,-500.0,0.00010958,2]
[333108636,1721871054730,-325.04788644,0.00010958,2]
[333108637,1721871054742,-749.41,0.00010958,2]
[333108638,1721871054751,-21309.23723078,0.00010958,2]
[333108639,1721871054771,-9951.6837076,0.00010958,2]
[333108640,1721871054780,-500.0,0.00010958,2]
[333108641,1721871054790,-500.0,0.00010958,2]
[333108642,1721871054800,-487.4347,0.00010958,2]
[333108643,1721871054809,-500.0,0.00010958,2]
[333108644,1721871054819,-500.0,0.00010958,2]
[333108645,1721871054828,-648.45110507,0.00010958,2]
[333108646,1721871054838,-500.0,0.00010958,2]
[333108647,1721871054847,-500.0,0.00010958,2]
[333108648,1721871054857,-500.0,0.00010958,2]
[333108649,1721871054866,-532.73524386,0.00010958,2]
[333108650,1721871054875,-513.45044748,0.00010958,2]
[333108651,1721871054884,-500.0,0.00010959,2]
[333108652,1721871054894,-200.0,0.00010959,2]
[333108653,1721871054903,-250.0,0.00010959,2]
[333108654,1721871054913,-2468.96,0.00010959,2]
[333108655,1721871054922,-150.0,0.00010959,2]
[333108656,1721871054931,-174.77,0.00010959,2]
[333108657,1721871054940,-873.89,0.00010959,2]
[333108658,1721871054949,-150.0,0.0001097,2]
[333108659,1721871054959,-150.0,0.00010984,2]
[333108660,1721871054968,-225.32565892,0.00010986,2]
[333108661,1721871054977,-161.58639748,0.00010986,2]
[333108662,1721871054989,-282.13081452,0.00010986,2]
[333108663,1721871054998,-1191.0,0.00010986,2]
[333108664,1721871055007,-1664.0,0.00010986,2]
[333108665,1721871055016,-2716.0,0.00010986,2]
[333108666,1721871055026,-7119.0,0.00010986,2]
[333108667,1721871055035,-247.42,0.00010988,2]
[333108668,1721871055045,-500.0,0.00010988,2]
[333108669,1721871055054,-560.63,0.00010988,2]
[333108670,1721871055064,-500.0,0.00010988,2]
[333108671,1721871055073,-379.58855214,0.00010988,2]
[333108672,1721871055085,-8.66144786,0.00010988,2]
[333108673,1721871055094,-347.46502878,0.00010988,2]
[333108674,1721871055103,-555.43,0.00010988,2]
[333108675,1721871055112,-186.25,0.00010988,2]
[333108676,1721871055121,-652.19352337,0.00010988,2]
[333108677,1721871055133,-404.53647663,0.00010988,2]
[333108678,1721871055147,-219.26,0.00010988,2]
[333108679,1721871055156,-455.46,0.00010988,2]
[333108680,1721871055165,-274.20896769,0.00010988,2]
[333108681,1721871055178,-225.79103231,0.00010988,2]
[333108682,1721871055187,-174.1945859,0.00010988,2]
[333108683,1721871055200,-325.8054141,0.00010988,2]
[333108684,1721871055209,-500.0,0.00010988,2]
[333108685,1721871055219,-500.0,0.00010988,2]
[333108686,1721871055231,-500.0,0.00010988,2]
[333108687,1721871055243,-500.0,0.00010988,2]
[333108688,1721871055252,-500.0,0.00010988,2]
[333108689,1721871055262,-500.0,0.00010988,2]
[333108690,1721871055271,-500.0,0.00010988,2]
[333108691,1721871055281,-500.0,0.00010988,2]
[333108692,1721871055291,-500.0,0.00010988,2]
[333108693,1721871055301,-157.02,0.00010988,2]
[333108694,1721871055310,-1021.88,0.00010988,2]
[333108695,1721871055320,-519.59,0.00010988,2]
[333108696,1721871055330,-500.0,0.00010988,2]
[333108697,1721871055340,-500.0,0.00010988,2]
[333108698,1721871055349,-500.0,0.00010988,2]
[333108699,1721871055359,-500.0,0.00010988,2]
[333108700,1721871055368,-500.0,0.00010988,2]
[333108701,1721871055378,-500.0,0.00010988,2]
[333108702,1721871055387,-500.0,0.00010988,2]
[333108703,1721871055397,-500.0,0.00010988,2]
[333108704,1721871055406,-500.0,0.00010988,2]
[333108705,1721871055415,-500.0,0.00010988,2]
[333108706,1721871055424,-500.0,0.00010988,2]
[333108707,1721871055434,-500.0,0.00010988,2]
[333108708,1721871055443,-500.0,0.00010988,2]
[333108709,1721871055452,-500.0,0.00010988,2]
[333108710,1721871055462,-500.0,0.00010988,2]
[333108711,1721871055472,-855.21,0.00010988,2]
[333108712,1721871055482,-500.0,0.00010988,2]
[333108713,1721871055495,-500.0,0.00010988,2]
[333108714,1721871055504,-135.49458595,0.00010988,2]
[333108715,1721871055516,-266.96666483,0.00010988,2]
[333108716,1721871055528,-204.94874922,0.00010988,2]
[333108717,1721871055537,-500.0,0.00010988,2]
[333108718,1721871055547,-500.0,0.00010988,2]
[333108719,1721871055556,-400.30125078,0.00010988,2]
[333108720,1721871055568,-99.69874922,0.00010988,2]
[333108721,1721871055577,-500.0,0.00010988,2]
[333108722,1721871055587,-500.0,0.00010988,2]
[333108723,1721871055596,-3.09454326,0.00010988,2]
[333108724,1721871055608,-496.90545674,0.00010988,2]
[333108725,1721871055617,-187.69954723,0.00010988,2]
[333108726,1721871074653,150.0,0.00011,30]
[333108736,1721871226389,150.56,8.219e-05,2]
[333108737,1721871275757,2478.09546934,8.219e-05,2]
[333108738,1721871392143,889.85,0.00015,119]
[333108739,1721871413115,514.50021854,8.219e-05,2]
[333108740,1721871452576,159.75820514,9.041e-05,2]
[333108741,1721871720012,-150.0,0.00015042,120]
[333108742,1721871720045,-150.0,0.00015117,120]
[333108743,1721871742081,150.89,8.219e-05,2]
[333108744,1721871794624,3171.85761162,8.219e-05,2]
[333108804,1721872232995,-183.15599431,9.276e-05,2]
[333108805,1721872233007,-300.0,9.296e-05,2]
[333108806,1721872233018,-23900.0,9.297e-05,2]
[333108807,1721872233028,-1763.15524743,9.388e-05,2]
[333108808,1721872233039,-250.0,9.388e-05,2]
[333108809,1721872233050,-1763.15524743,9.423e-05,2]
[333108810,1721872233062,-485.74,9.458e-05,2]
[333108811,1721872233072,-1763.15524743,9.458e-05,2]
[333108812,1721872233084,-158.52711231,9.47e-05,2]
[333108813,1721872233095,-1000.0,9.477e-05,2]
[333108814,1721872233106,-152.33942537,9.516e-05,2]
[333108815,1721872233117,-170.57,9.559e-05,2]
[333108816,1721872233127,-3155.68,9.778e-05,2]
[333108817,1721872233138,-154.33741855,9.837e-05,2]
[333108818,1721872233148,-150.0,9.899e-05,2]
[333108819,1721872233158,-1166.7369,9.9e-05,2]
[333108820,1721872233169,-1634.8,9.9e-05,2]
[333108821,1721872233179,-150.99,9.9e-05,2]
[333108822,1721872233189,-5127.39,9.9e-05,2]
[333108823,1721872233200,-400.0,9.9e-05,3]
[333108824,1721872233211,-782.8,9.903e-05,2]
[333108825,1721872233222,-173.25,9.903e-05,2]
[333108826,1721872233232,-29381.84052481,9.98e-05,2]
[333108827,1721872233245,-8852.79797959,9.98e-05,2]
[333108828,1721872233255,-1050.76276771,0.0001,2]
[333108829,1721872233266,-19935.51468046,0.0001,2]
[333108830,1721872233278,-286.18192272,0.0001,2]
[333108831,1721872233291,-29967.88831029,0.0001,2]
[333108832,1721872233301,-800.0,0.0001,3]
[333108833,1721872233312,-891.27,0.00010013,2]
[333108834,1721872233323,-624.55,0.00010055,2]
[333108835,1721872233334,-1200.0,0.000101,3]
[333108836,1721872233344,-150.48,0.00010192,2]
[333108837,1721872233354,-530.01,0.00010192,2]
[333108838,1721872233364,-530.01,0.00010192,2]
[333108839,1721872233374,-530.01,0.00010192,2]
[333108840,1721872233384,-1600.0,0.000102,3]
[333108841,1721872233395,-420.0,0.00010226,2]
[333108842,1721872233407,-833.79,0.00010241,2]
[333108843,1721872233418,-420.24,0.00010241,2]
[333108844,1721872233428,-833.79,0.00010241,2]
[333108845,1721872233439,-420.24,0.00010241,2]
[333108846,1721872233449,-833.79,0.00010241,2]
[333108847,1721872233463,-420.24,0.00010241,2]
[333108848,1721872233476,-2000.0,0.000103,3]
[333108849,1721872233487,-7126.54534884,0.00010318,2]
[333108850,1721872233498,-530.01,0.00010378,2]
[333108851,1721872233510,-714.04,0.00010378,2]
[333108852,1721872233520,-302.74,0.00010378,2]
[333108853,1721872233532,-301.16,0.00010378,2]
[333108854,1721872233544,-331.87,0.00010378,2]
[333108855,1721872233555,-151.11,0.00010378,2]
[333108856,1721872233566,-530.01,0.00010378,2]
[333108857,1721872233577,-530.01,0.00010378,2]
[333108858,1721872233587,-530.01,0.00010378,2]
[333108859,1721872233598,-530.01,0.00010378,2]
[333108860,1721872233609,-533.08,0.00010378,2]
[333108861,1721872233619,-400.0,0.000104,3]
[333108862,1721872233630,-400.0,0.000105,3]
[333108863,1721872233640,-400.0,0.000106,3]
[333108864,1721872233651,-1000.0,0.00010661,2]
[333108865,1721872233662,-174.67800541,0.00010668,2]
[333108866,1721872233673,-2500.0,0.0001068,2]
[333108867,1721872233684,-45391.3683,0.00010687,2]
[333108868,1721872233695,-400.0,0.000107,3]
[333108869,1721872233706,-150.89,0.00010712,2]
[333108870,1721872233719,-364246.0,0.0001074,2]
[333108871,1721872233730,-272.792956,0.00010768,2]
[333108872,1721872233741,-150.0,0.00010775,2]
[333108873,1721872233752,-618.6512,0.0001078,2]
[333108874,1721872233763,-13549.9698,0.0001078,2]
[333108875,1721872233774,-100000.0,0.00010787,2]
[333108876,1721872234250,-6214.7731,0.00010787,2]
[333108877,1721872234280,-2955.8648,0.00010787,2]
[333108878,1721872234303,-320.4312,0.00010787,2]
[333108879,1721872234318,-1738.53238476,0.00010793,2]
[333108880,1721872234327,-500.0,0.00010796,2]
[333108881,1721872234337,-1000.0,0.00010796,2]
[333108882,1721872234347,-2599.0946003,0.00010799,2]
[333108883,1721872234356,-560.0,0.000108,3]
[333108884,1721872234366,-10000.0,0.00010858,2]
[333108885,1721872234376,-1000.0,0.00010858,2]
[333108886,1721872234385,-281.344,0.0001088,2]
[333108887,1721872234395,-500.0,0.00010885,2]
[333108888,1721872234404,-165.70296656,0.00010898,2]
[333108889,1721872234414,-160.00027944,0.00010899,2]
[333108890,1721872234423,-160.00027943,0.00010899,2]
[333108891,1721872234432,-159.53952643,0.00010899,2]
[333108892,1721872234441,-165.70296655,0.000109,2]
[333108893,1721872234451,-160.00027943,0.000109,2]
[333108894,1721872234466,-154.66402116,0.000109,2]
[333108895,1721872234478,-728.0,0.00010958,2]
[333108896,1721872234488,-564.94339722,0.00010958,2]
[333108897,1721872234498,-502.09027656,0.00010958,2]
[333108898,1721872234508,-501.40542199,0.00010958,2]
[333108899,1721872234518,-501.01282012,0.00010958,2]
[333108900,1721872234528,-501.01638399,0.00010958,2]
[333108901,1721872234537,-501.96885101,0.00010958,2]
[333108902,1721872234547,-503.20854646,0.00010958,2]
[333108903,1721872234556,-501.03137365,0.00010958,2]
[333108904,1721872234566,-500.89994675,0.00010958,2]
[333108905,1721872234575,-500.92570815,0.00010958,2]
[333108906,1721872234585,-501.29903619,0.00010958,2]
[333108907,1721872234594,-501.03426153,0.00010958,2]
[333108908,1721872234603,-501.69573077,0.00010958,2]
[333108909,1721872234612,-501.15779228,0.00010958,2]
[333108910,1721872234621,-500.94162046,0.00010958,2]
[333108911,1721872234631,-501.90045188,0.00010958,2]
[333108912,1721872234640,-224.23625089,0.00010958,2]
[333108913,1721872234649,-501.13074332,0.00010958,2]
[333108914,1721872234659,-500.94667202,0.00010958,2]
[333108915,1721872234668,-502.06214858,0.00010958,2]
[333108916,1721872234678,-500.36596497,0.00010958,2]
[333108917,1721872234687,-306.54328163,0.00010958,2]
[333108918,1721872234696,-328.94912099,0.00010958,2]
[333108919,1721872234705,-386.47522059,0.00010958,2]
[333108920,1721872234722,-153.44751197,0.00010958,2]
[333108921,1721872234732,-339.92328289,0.00010958,2]
[333108922,1721872234742,-500.0,0.00010958,2]
[333108923,1721872234751,-500.0,0.00010958,2]
[333108924,1721872234763,-500.0,0.00010958,2]
[333108925,1721872234773,-500.0,0.00010958,2]
[333108926,1721872234783,-500.0,0.00010958,2]
[333108927,1721872234792,-500.0,0.00010958,2]
[333108928,1721872234802,-583.0256711,0.00010958,2]
[333108929,1721872234811,-642.08827504,0.00010958,2]
[333108930,1721872234821,-500.0,0.00010958,2]
[333108931,1721872234830,-490.87585068,0.00010958,2]
[333108932,1721872234839,-438.36435776,0.00010958,2]
[333108933,1721872234849,-500.0,0.00010958,2]
[333108934,1721872234859,-478.97600299,0.00010958,2]
[333108935,1721872234869,-500.0,0.00010958,2]
[333108936,1721872234879,-500.0,0.00010958,2]
[333108937,1721872234888,-500.0,0.00010958,2]
[333108938,1721872234899,-500.0,0.00010958,2]
[333108939,1721872234909,-500.0,0.00010958,2]
[333108940,1721872234919,-573.49993797,0.00010958,2]
[333108941,1721872234929,-505.51884232,0.00010958,2]
[333108942,1721872234939,-500.0,0.00010958,2]
[333108943,1721872234950,-500.0,0.00010958,2]
[333108944,1721872234962,-425.40063968,0.00010958,2]
[333108945,1721872234973,-500.0,0.00010958,2]
[333108946,1721872234983,-505.04550004,0.00010958,2]
[333108947,1721872234992,-500.0,0.00010958,2]
[333108948,1721872235002,-500.0,0.00010958,2]
[333108949,1721872235012,-500.0,0.00010958,2]
[333108950,1721872235022,-485.01985744,0.00010958,2]
[333108951,1721872235033,-500.0,0.00010958,2]
[333108952,1721872235043,-500.0,0.00010958,2]
[333108953,1721872235053,-616.01311793,0.00010958,2]
[333108954,1721872235063,-500.0,0.00010958,2]
[333108955,1721872235072,-401.41609414,0.00010958,2]
[333108956,1721872235082,-500.0,0.00010958,2]
[333108957,1721872235091,-198.84270612,0.00010958,2]
[333108958,1721872235100,-500.0,0.00010958,2]
[333108959,1721872235111,-500.0,0.00010958,2]
[333108960,1721872235121,-500.0,0.00010958,2]
[333108961,1721872235130,-500.0,0.00010958,2]
[333108962,1721872235139,-500.0,0.00010958,2]
[333108963,1721872235149,-215.52074076,0.00010958,2]
[333108964,1721872235158,-500.0,0.00010958,2]
[333108965,1721872235167,-570.24083484,0.00010958,2]
[333108966,1721872235176,-500.0,0.00010958,2]
[333108967,1721872235186,-500.0,0.00010958,2]
[333108968,1721872235195,-636.8608395,0.00010958,2]
[333108969,1721872235204,-500.0,0.00010958,2]
[333108970,1721872235216,-174.2808799,0.00010958,2]
[333108971,1721872235225,-502.38316819,0.00010958,2]
[333108972,1721872235235,-500.0,0.00010958,2]
[333108973,1721872235244,-606.59534915,0.00010958,2]
[333108974,1721872235254,-502.6927173,0.00010958,2]
[333108975,1721872235263,-500.0,0.00010958,2]
[333108976,1721872235272,-500.0,0.00010958,2]
[333108977,1721872235282,-502.85474784,0.00010958,2]
[333108978,1721872235291,-500.0,0.00010958,2]
[333108979,1721872235300,-500.0,0.00010958,2]
[333108980,1721872235310,-500.0,0.00010958,2]
[333108981,1721872235319,-500.0,0.00010958,2]
[333108982,1721872235329,-500.0,0.00010958,2]
[333108983,1721872235338,-500.0,0.00010958,2]
[333108984,1721872235348,-282.48999901,0.00010958,2]
[333108985,1721872235358,-500.0,0.00010958,2]
[333108986,1721872235367,-500.0,0.00010958,2]
[333108987,1721872235377,-500.0,0.00010958,2]
[333108988,1721872235386,-500.0,0.00010958,2]
[333108989,1721872235396,-500.0,0.00010958,2]
[333108990,1721872235405,-501.63254848,0.00010958,2]
[333108991,1721872235415,-500.0,0.00010958,2]
[333108992,1721872235425,-500.0,0.00010958,2]
[333108993,1721872235435,-430.13310175,0.00010958,2]
[333108994,1721872235445,-500.0,0.00010958,2]
[333108995,1721872235456,-500.0,0.00010958,2]
[333108996,1721872235471,-502.89733668,0.00010958,2]
[333108997,1721872235480,-500.0,0.00010958,2]
[333108998,1721872235490,-500.0,0.00010958,2]
[333108999,1721872235499,-500.0,0.00010958,2]
[333109000,1721872235510,-563.7731368,0.00010958,2]
[333109001,1721872235519,-500.0,0.00010958,2]
[333109002,1721872235530,-500.0,0.00010958,2]
[333109003,1721872235540,-500.0,0.00010958,2]
[333109004,1721872235552,-497.75073489,0.00010958,2]
[333109005,1721872235562,-500.0,0.00010958,2]
[333109006,1721872235571,-307.85142791,0.00010958,2]
[333109007,1721872235581,-504.31492615,0.00010958,2]
[333109008,1721872235591,-500.0,0.00010958,2]
[333109009,1721872235600,-500.0,0.00010958,2]
[333109010,1721872235610,-316.33370692,0.00010958,2]
[333109011,1721872235619,-282.01709898,0.00010958,2]
[333109012,1721872235628,-500.0,0.00010958,2]
[333109013,1721872235638,-500.0,0.00010958,2]
[333109014,1721872235648,-500.0,0.00010958,2]
[333109015,1721872235657,-500.0,0.00010958,2]
[333109016,1721872235667,-280.55913492,0.00010958,2]
[333109017,1721872235676,-504.52081947,0.00010958,2]
[333109018,1721872235686,-500.0,0.00010958,2]
[333109019,1721872235695,-500.0,0.00010958,2]
[333109020,1721872235704,-500.0,0.00010958,2]